Cogmind - Beta 9.4 @@@ ROGUE MODE // 2020.03.29 @ 17:34:00 Player: High Tyrol Result: Destroyed by as-36041 with Assembled F-torch Performance ------------- Evolutions (0) 0 Regions Visited (2) 400 Robots Destroyed (19) 95 Value Destroyed (357) 357 Prototype IDs (2) 40 Alien Tech Used (0) 0 Bonus (0) 0 TOTAL SCORE: 892 Bonus ------- None Cogmind --------- Core Integrity 0/250 Matter 290/300 Energy 100/100 System Corruption 0% Temperature Cool (20) Movement Core (1150) Ox22 Location -10/Mines Parts ------- > --- POWER (1) -------- (None) > --- PROPULSION (2) --- (None) > --- UTILITY (2) ------ High-capacity Storage Unit High-capacity Storage Unit > --- WEAPON (2) ------- Makeshift Hammer > --- INVENTORY (20) --- Ion Engine Ion Engine Ion Engine Ion Engine Ion Engine Ion Engine Aluminum Leg Aluminum Leg Medium Armor Plating Medium Armor Plating Medium Armor Plating Medium Armor Plating Heavy EM Pulse Gun Heavy EM Pulse Gun Heavy EM Pulse Gun Light EM Pulse Cannon Light EM Pulse Cannon Light EM Pulse Cannon Peak State ------------ > --- POWER ------------ Ion Engine > --- PROPULSION ------- Aluminum Leg Aluminum Leg > --- UTILITY ---------- High-capacity Storage Unit High-capacity Storage Unit > --- WEAPON ----------- Light EM Pulse Cannon Makeshift Hammer > --- INVENTORY -------- Ion Engine Ion Engine Ion Engine Ion Engine Ion Engine Ion Engine Aluminum Leg Aluminum Leg Medium Armor Plating Medium Armor Plating Medium Armor Plating Medium Armor Plating Heavy EM Pulse Gun Heavy EM Pulse Gun Heavy EM Pulse Gun Light EM Pulse Cannon Light EM Pulse Cannon Light EM Pulse Cannon [Rating: 13] Favorites ----------- Power Ion Engine Engine Ion Engine Propulsion Aluminum Leg Leg Aluminum Leg Utility High-capacity Storage Unit Storage High-capacity Storage Unit Weapon Light EM Pulse Cannon Energy Gun Heavy EM Pulse Gun Energy Cannon Light EM Pulse Cannon Launcher EMP Blaster Impact Weapon Makeshift Hammer Build | -11 -10 -10 ------- Run | Scr Mat Min Slots Evolved . | . . . Power . | . . . Propulsion . | . . . Utility . | . . . Weapon . | . . . Parts Attached 13 | 5 7 1 Power 1 | 1 . . Engine 1 | 1 . . Core . | . . . Reactor . | . . . Propulsion 2 | 2 . . Treads . | . . . Leg 2 | 2 . . Wheel . | . . . Hover . | . . . Flight . | . . . Utility 3 | 1 2 . Device . | . . . Storage 3 | 1 2 . Processor . | . . . Hackware . | . . . Protection . | . . . Artifact . | . . . Weapon 7 | 1 5 1 Energy Gun 3 | 1 2 . Energy Cannon 2 | . 2 . Ballistic Gun . | . . . Ballistic Cannon . | . . . Launcher 1 | . 1 . Special Weapon . | . . . Impact Weapon 1 | . . 1 Slashing Weapon . | . . . Piercing Weapon . | . . . Special Melee Weapon . | . . . Unidentified Prototypes . | . . . Parts Lost 6 | . 2 4 Power 1 | . . 1 Propulsion 2 | . . 2 Utility . | . . . Weapon 3 | . 2 1 Highest Loss Streak 4 | . 1 4 Average Slot Usage (%) 93 | . 92 96 Engine 13 | . 14 12 Leg 27 | . 28 26 Storage 25 | . 24 28 Energy Gun 5 | . 7 . Energy Cannon 15 | . 11 24 Launcher 3 | . 4 . Naked Turns . | . . . Heaviest Build 77 | 11 77 77 Greatest Support 20 | 20 20 20 Greatest Overweight (x) 22 | . 3 22 Average Overweight (x) 2 | . 2 3 Largest Inventory Capacity 20 | 6 20 20 Average Capacity 17 | 4 16 20 Most Carried 18 | 4 17 18 Average Carried 12 | 3 10 17 Final Capacity 20 | 6 20 20 Final Carried 18 | 3 17 18 Class Distribution -------------------- 84% | Hauler-Mutant 15% | Mutant Dominant Class ---------------- Hauler-Mutant | -10/Materials Hauler-Mutant | -10/Mines Resources | -11 -10 -10 ----------- Run | Scr Mat Min Matter Collected 308 | 241 67 . Remotely . | . . . Salvage Created 599 | . 574 25 Parts 46 | . 45 1 Haulers Intercepted . | . . . Recyclers Shooed 1 | . 1 . Parts Field Recycled . | . . . Retrieved Matter . | . . . Parts Self-Destructed . | . . . Prevented . | . . . Kills | -11 -10 -10 ------- Run | Scr Mat Min Combat Hostiles Destroyed 13 | . 11 2 Guns 9 | . 9 . Cannons 1 | . . 1 AOE 2 | . 2 . Classes Destroyed 7 | . 5 2 Worker 1 | . 1 . Recycler 4 | . 4 . Watcher 1 | . 1 . Swarmer 6 | . 6 . Grunt 5 | . 5 . Demolisher 1 | . . 1 Assembled 1 | . . 1 Best Kill Streak 8 | . 8 2 Combat Bots Only 5 | . 5 2 Max Kills in Single Turn 4 | . 4 1 Gunslinging . | . . . Exploded 1 | . 1 . Melee . | . . . Uniques/NPCs Destroyed . | . . . Combat | -11 -10 -10 -------- Run | Scr Mat Min Damage Taken 865 | . 407 458 Core 256 | . 64 192 Absorbed by Shields . | . . . Core Remaining (%) 100 | 100 . . Volleys Fired 36 | . 35 1 Largest 2 | . 2 1 Hottest 112 | . 112 56 Shots Fired 38 | . 37 1 Gun 31 | . 31 . Cannon 5 | . 4 1 Launcher 2 | . 2 . Special . | . . . Kinetic . | . . . Thermal . | . . . Explosive . | . . . Electromagnetic 38 | . 37 1 Robot Hit Streak 7 | . 7 1 Robot Miss Streak 3 | . 3 . Penetration Max . | . . . Secondary Targets . | . . . Shots Hit Robots 24 | . 21 3 Core Hits 19 | . 18 1 Critical Hits . | . . . Critical Kills . | . . . Critical Parts Destroyed . | . . . Melee Attacks 3 | . . 3 Impact 3 | . . 3 Slashing . | . . . Piercing . | . . . Sneak Attacks . | . . . Combat Hostiles . | . . . Follow-up Attacks . | . . . Damage Inflicted 732 | . 636 96 Guns 349 | . 349 . Cannons 18 | . . 18 Explosions 287 | . 287 . Melee 78 | . . 78 Ramming . | . . . Kinetic . | . . . Thermal 229 | . 229 . Explosive . | . . . Electromagnetic 425 | . 407 18 Impact 78 | . . 78 Slashing . | . . . Piercing . | . . . Highest Corruption . | . . . Average Corruption . | . . . Corruption Purged . | . . . Overload Shots . | . . . Overflow Damage 5 | . 3 2 Projectiles . | . . . Explosions 3 | . 3 . Melee 2 | . . 2 Knockbacks 1 | . . 1 Impact 1 | . . 1 Kinetic . | . . . Secondary . | . . . Self-Inflicted Damage 56 | . 56 . Shots 1 | . 1 . Rammed . | . . . Targets Rammed . | . . . Kicked . | . . . Crushed . | . . . Highest Temperature 51 | . 51 6 Average Temperature 18 | . 18 4 Received Heat Transfer 111 | . 51 60 Siege Activations . | . . . Robots Corrupted . | . . . Combat Hostiles . | . . . Parts Fried 1 | . 1 . Impact Corruptions 1 | . . 1 Robots Melted . | . . . Combat Hostiles . | . . . Parts Melted . | . . . Heat Transferred 150 | . 150 . Parts Sabotaged . | . . . Parts Stolen . | . . . Parts Stripped . | . . . Power Chain Reactions 1 | . 1 . Missiles Intercepted . | . . . Alert | -11 -10 -10 ------- Run | Scr Mat Min Peak Influence 317 | . 317 20 Average Influence 100 | . 150 . Maximum Alert Level 1 | . 1 . Low Security (%) 78 | 100 67 100 Level 1 21 | . 32 . Level 2 . | . . . Level 3 . | . . . Level 4 . | . . . Level 5 . | . . . High Security . | . . . Max Security . | . . . Squads Dispatched 2 | . 2 . Investigation 1 | . 1 . Extermination . | . . . Reinforcement 1 | . 1 . Assault . | . . . Garrison . | . . . Intercept . | . . . Construction Impeded . | . . . Haulers Reinforced . | . . . Stealth | -11 -10 -10 --------- Run | Scr Mat Min Distress Signals 2 | . 2 . Communications Jammed . | . . . Distress Signals . | . . . Times Spotted 26 | . 18 8 Peak Tracking Total 6 | . 5 6 Tactical Retreats . | . . . Traps | -11 -10 -10 ------- Run | Scr Mat Min Traps Triggered 2 | . 2 . Indirectly . | . . . Trap Hack Attempts . | . . . Triggered . | . . . Disarmed . | . . . Reprogrammed . | . . . Reused . | . . . Traps Extracted . | . . . Installed . | . . . Triggered . | . . . Machines | -11 -10 -10 ---------- Run | Scr Mat Min Machines Disabled 2 | . 2 . Max in Single Turn 1 | . 1 . Machines Sabotaged . | . . . Garrisons Compromised . | . . . Overloaded Fab Kills . | . . . Fab Network Shutdowns . | . . . Hacking | -11 -10 -10 --------- Run | Scr Mat Min Machines Accessed 5 | . 5 . Terminals 3 | . 3 . Fabricators . | . . . Repair Stations . | . . . Recycling Units 2 | . 2 . Scanalyzers . | . . . Garrison Access . | . . . Total Hacks 10 | . 10 . Successful 5 | . 5 . Failed 5 | . 5 . Catastrophic 1 | . 1 . Database Lockouts . | . . . Manual 7 | . 7 . Terminals 8 | . 8 . Fabricators . | . . . Repair Stations . | . . . Recycling Units 2 | . 2 . Scanalyzers . | . . . Garrison Access . | . . . Terminal Hacks 2 | . 2 . Prototype ID Bank 1 | . 1 . Branch Access Points 1 | . 1 . Fabricator Hacks . | . . . Repair Station Hacks . | . . . Recycling Unit Hacks 2 | . 2 . Report Inventory 2 | . 2 . Scanalyzer . | . . . Garrison Access Hacks . | . . . Unauthorized Hacks 4 | . 4 . Terminals 1 | . 1 . Botnet 1 | . 1 . Fabricators . | . . . Repair Stations . | . . . Recycling Units . | . . . Scanalyzers . | . . . Garrison Access . | . . . Data Cores Recovered . | . . . Used . | . . . Hacking Detections 4 | . 4 . Full Trace Events 3 | . 3 . Feedback Events . | . . . Feedback Blocked . | . . . Robot Schematics Acquired . | . . . Robots Built . | . . . Matter . | . . . Time . | . . . Total Robot Build Rating . | . . . Part Schematics Acquired . | . . . Parts Built . | . . . Matter . | . . . Time . | . . . Total Part Build Rating . | . . . Parts Repaired . | . . . Time . | . . . Parts Recycled . | . . . Recycled Matter . | . . . Retrieved Matter . | . . . Retrieved Components . | . . . Parts Scanalyzed . | . . . Part Schematics Acquired . | . . . Parts Damaged . | . . . Bothacking | -11 -10 -10 ------------ Run | Scr Mat Min Used RIF Installer . | . . . Robots Hacked . | . . . Non-combat . | . . . Combat . | . . . Robot Hacks Applied . | . . . Relay Couplers Released . | . . . Robots Rewired . | . . . Allies Hacked . | . . . Hacks Repelled . | . . . Allies | -11 -10 -10 -------- Run | Scr Mat Min Total Allies . | . . . Largest Group . | . . . Highest-Rated Group . | . . . Highest-Rated Ally . | . . . Total Orders . | . . . Ally Attacks . | . . . Total Damage . | . . . Kills . | . . . Allies Corrupted . | . . . Allies Melted . | . . . Intel | -11 -10 -10 ------- Run | Scr Mat Min Robot Analysis Total . | . . . Derelict Logs Recovered . | . . . Drone Launches . | . . . Drone Recoveries . | . . . Exploration | -11 -10 -10 ------------- Run | Scr Mat Min Turns Passed 1222 | 47 809 366 Spaces Moved 571 | 38 368 165 Core 15 | 14 . 1 Treads . | . . . Legs 556 | 24 368 164 Wheels . | . . . Hover . | . . . Flight . | . . . Fastest Speed 50 | 50 120 210 Average Speed 189 | 94 185 219 Slowest Speed 1150 | 120 210 1150 Overloaded Moves . | . . . Propulsion Burnouts . | . . . Robots Hopped . | . . . Cave-ins Triggered . | . . . Exploration Rate (%) 30 | 3 50 39 Regions Visited 2 Branch Regions 1 Pre-discovered Areas . | . . . Known Exits Taken 1 | . 1 . Unknown Exits Taken 1 | 1 . . Scrap Searched . | . . . Spaces Dug . | . . . Terrain Destroyed 5 | . 5 . Melee . | . . . Projectile . | . . . AOE 5 | . 5 . Actions | -11 -10 -10 --------- Run | Scr Mat Min Total 678 | 47 460 171 Wait 20 | . 20 . Move 569 | 37 367 165 Hop . | . . . Pick Up 30 | 5 24 1 Fast Attach 4 | 3 1 . Attach 7 | 2 5 . Detach . | . . . Swap 2 | . 1 1 Drop 7 | . 7 . Fire 36 | . 35 1 Melee 3 | . . 3 Ram . | . . . Kick . | . . . Crush . | . . . Escape Stasis . | . . . Rewire . | . . . Trap . | . . . Miscellaneous . | . . . Route ------- -11/Scrapyard -10/Materials (discovered 3 exits: [*Mat x2] / *Min) -10/Mines (discovered 1 exit: [*Mat]) History --------- Turn | Location | Event 11 | -11/Scrapyard | Discovered new exit (range 15) 48 | -11/Scrapyard | Entered Materials 218 | -10/Materials | Discovered new exit (range 15) 498 | -10/Materials | Build established: Hauler-Mutant 614 | -10/Materials | Discovered new exit (range 12) 654 | -10/Materials | Identified exit to Mines 857 | -10/Materials | Entered Mines 1143 | -10/Mines | A weapon hastily lodged in a ceiling crevice suddenly fell to the ground 1186 | -10/Mines | Assembled infested the area 1191 | -10/Mines | Assisted by a Guerilla fighting off Assembled 1192 | -10/Mines | Discovered new exit (range 8) 1195 | -10/Mines | Core integrity fell below 50% 1200 | -10/Mines | Core integrity fell below 20% 1223 | -10/Mines | Destroyed by as-36041 with Assembled F-torch Last Messages --------------- U-05 Engineer builds a Wall. R-06 Scavenger collects Structural Scanner. The unstable cave ceiling collapses. R-06 Scavenger collects Wheel. U-05 Engineer builds a Wall. K-01 Serf collects debris. Destroyed Asb. Blade. as-05973 system corrupted by crushing effect. as-05973 knocked back. as-05973 system terminally corrupted. R-06 Scavenger collects Lgt. Ion Engine. The unstable cave ceiling collapses. U-05 Engineer lays Concrete. K-01 Serf collects debris. The unstable cave ceiling collapses. U-05 Engineer lays Concrete. Aluminum Leg destroyed. K-01 Serf collects debris. U-05 Engineer lays Concrete. K-01 Serf collects debris. Map ----- +----------------------------------------------------+ | ?????????????????????????????????????????????????? | | ?????????????????????????????????????????????????? | | ?????????????????????????????????????????????????? | | ?????????????????????????????????????????????????? | | ????????????????????????????????????????????????? | | #?????????????????????????????????????????????? | | #?????????????????????????????????????????????? | | #?????????????????????????????????????????????? | | #?????????????????????????????????????????????? | | #?????????????????????????????????????????????? | | #??????????????????????????????????????????????? | | #??????????????????????????????????????????????? | | #??????????????????????????????????????????????? | | #??????????????????????????????????????????????? | | #???????????????????????????????????????????????? | | #????????????????????????????????????????????????? | | ##???????????????????????????????????????????????? | | ##??????????????????????????????????????????????? | | #??????????????????????????????????????????????? | | #??????????????????????????????????????????????? | | #????????????#?????????????????????????????????? | | #????????????# ??#####?????????????? #?????????? | | ##??????####### ### ##????????? ?????????? | | #???????? ###### ??????????? | | #????????????## a a #;; #??????????????? | | ####????????## a @ #???????????????? | | ##### #??# a % < #???????????????? | | ## #??# # #???????????????? | | ## #######?## = u # #??????????????? | | #??????## # # #r k #??????????????? | | ####??## ## # ????????????? | | #### ## ???????????? | | # ### #############??????????? | | ########?# #??????????????????????? | | #### ##????????# #??????????????????????? | | ##??########????????? r #??????????????????????? | | ##??????????????????? #??????????????????????? | | #??????????????????? ##??????????????????????? | | #??????????????????? ????????????????????????? | | #??????????????????? ????????????????????????? | | #####???????????????? ????????????????????????? | | ### ##?????????????????????????????????????????? | | ### #?????????????????????????????????????????? | | ## #?????????????????????????????????????????? | | #??????????????????????????????????????????? | | ###??????????????????????????????????????????? | | ##????????????????????????????????????????????? | | #?????????????????????????????????????????????? | | #?????????????????????????????????????????????? | | #?????????????????????????????????????????????? | +----------------------------------------------------+ Best States ------------- Heat Dissipation 25 Energy Generation 10 Energy Capacity 250 Matter Stores 300 Matter Capacity 300 Sight Range 16 Terrain Scan Density 10 Evasion (%) 50 Item Schematics ----------------- None Robot Schematics ------------------ None Fabricated ------------ Nothing Alien Tech Used ----------------- None Achievements -------------- None Challenges ------------ None Game ------ Seed HighTyrol22222 Manual? 1 Play Time 00:15:44 Cumulative 6.5 hours Start 2020.03.01 @ 16:53:58 End 2020.03.29 @ 17:34:00 Sessions 3 Manual Loads 0 Difficulty Rogue Special Mode None Game No. 17 Rogue 17 Adventurer 0 Explorer 0 Win Type - Total 0 Types 0/0/0/0/0/0/0 Lore% 2 Gallery% 9 Achievement% 11 Wizard Run 0 Options --------- ASCII 0 Keyboard 0 Movement Mouse Keybinds 0 Fullscreen 1 Font 12/Smallcaps Map View 83x54 Tactical HUD 0 Map Filters NONE Filters NONE Steam 1 RUN: 12b2f136-a59a-4cee-880f-b7c5a05e85f7